[Event "*** SCC Grand Prix: Titled Tuesday Blitz"]
[Site "Chess.com"]
[Date "2020.08.11"]
[Round "1"]
[White "GOGIEFF"]
[Black "OhanyanEminChess"]
[Result "1/2-1/2"]
[WhiteElo "2869"]
[BlackElo "2430"]
[TimeControl "180+1"]
[EndTime "10:09:31 PDT"]
[Termination "Game drawn by repetition"]

1. d4 {[%clk 0:03:00.8]} 1... Nf6 {[%clk 0:02:54]} 2. c4 {[%clk 0:03:00.3]} 2...
c5 {[%clk 0:02:53.9]} 3. d5 {[%clk 0:03:00]} 3... b5 {[%clk 0:02:54.3]} 4. cxb5
{[%clk 0:03:00.3]} 4... a6 {[%clk 0:02:54.4]} 5. bxa6 {[%clk 0:03:00.6]} 5... g6
{[%clk 0:02:55]} 6. Nc3 {[%clk 0:03:00.8]} 6... Bg7 {[%clk 0:02:55.5]} 7. e4
{[%clk 0:03:00.6]} 7... O-O {[%clk 0:02:55.9]} 8. Bd2 {[%clk 0:02:58.3]} 8... d6
{[%clk 0:02:55.4]} 9. Nf3 {[%clk 0:02:57]} 9... Bxa6 {[%clk 0:02:55.4]} 10. Bxa6
{[%clk 0:02:55.1]} 10... Nxa6 {[%clk 0:02:56.3]} 11. O-O {[%clk 0:02:54.9]}
11... Nc7 {[%clk 0:02:56.8]} 12. a4 {[%clk 0:02:46.2]} 12... Qd7 {[%clk
0:02:55.5]} 13. Qc2 {[%clk 0:02:37.4]} 13... Rfb8 {[%clk 0:02:54.3]} 14. h3
{[%clk 0:02:32.2]} 14... Nfe8 {[%clk 0:02:54.2]} 15. Rfe1 {[%clk 0:02:29.6]}
15... Na6 {[%clk 0:02:46.7]} 16. e5 {[%clk 0:02:25.7]} 16... Nb4 {[%clk
0:02:45.8]} 17. Qe4 {[%clk 0:02:23.7]} 17... Nc7 {[%clk 0:02:44.8]} 18. Rad1
{[%clk 0:02:10.9]} 18... Qf5 {[%clk 0:02:31.6]} 19. Qxf5 {[%clk 0:02:04.1]}
19... gxf5 {[%clk 0:02:32.5]} 20. exd6 {[%clk 0:02:04.3]} 20... exd6 {[%clk
0:02:27.3]} 21. Bf4 {[%clk 0:02:03.4]} 21... Rd8 {[%clk 0:02:18.4]} 22. Nh4
{[%clk 0:01:49.1]} 22... Bxc3 {[%clk 0:02:18.1]} 23. bxc3 {[%clk 0:01:48.9]}
23... Nbxd5 {[%clk 0:02:18.7]} 24. Bd2 {[%clk 0:01:41.1]} 24... Rxa4 {[%clk
0:02:18.5]} 25. Nxf5 {[%clk 0:01:41.1]} 25... Ne6 {[%clk 0:02:14.4]} 26. Bh6
{[%clk 0:01:28.6]} 26... Nxc3 {[%clk 0:02:05.1]} 27. Rd3 {[%clk 0:01:18.1]}
27... Ne4 {[%clk 0:02:03.7]} 28. f3 {[%clk 0:01:07.1]} 28... Nf6 {[%clk
0:01:51.6]} 29. Rxd6 {[%clk 0:00:57.7]} 29... Rxd6 {[%clk 0:01:50.8]} 30. Nxd6
{[%clk 0:00:58.6]} 30... Rd4 {[%clk 0:01:45.8]} 31. Nf5 {[%clk 0:00:56.9]} 31...
Rd7 {[%clk 0:01:40.3]} 32. Rc1 {[%clk 0:00:55.7]} 32... Nd5 {[%clk 0:01:32.7]}
33. Rc4 {[%clk 0:00:53.4]} 33... f6 {[%clk 0:01:18.8]} 34. Kf2 {[%clk
0:00:43.2]} 34... Kf7 {[%clk 0:01:05.7]} 35. g4 {[%clk 0:00:43.3]} 35... Nb6
{[%clk 0:01:06]} 36. Rc2 {[%clk 0:00:43]} 36... c4 {[%clk 0:01:00.8]} 37. Be3
{[%clk 0:00:42.1]} 37... Nd5 {[%clk 0:00:57.9]} 38. Rxc4 {[%clk 0:00:42.2]}
38... Nxe3 {[%clk 0:00:58.1]} 39. Kxe3 {[%clk 0:00:43.1]} 39... Ng7 {[%clk
0:00:56.5]} 40. Nd4 {[%clk 0:00:38.9]} 40... Ne6 {[%clk 0:00:50.9]} 41. Ne2
{[%clk 0:00:33.9]} 41... Re7 {[%clk 0:00:48.6]} 42. Kf2 {[%clk 0:00:31.4]} 42...
Rc7 {[%clk 0:00:42]} 43. Rxc7+ {[%clk 0:00:31.2]} 43... Nxc7 {[%clk 0:00:42.9]}
44. Nf4 {[%clk 0:00:31.6]} 44... Ne8 {[%clk 0:00:41.7]} 45. h4 {[%clk
0:00:31.8]} 45... Nd6 {[%clk 0:00:39.8]} 46. Ke3 {[%clk 0:00:32]} 46... Nc4+
{[%clk 0:00:34.2]} 47. Kd3 {[%clk 0:00:28.2]} 47... Ne5+ {[%clk 0:00:31.4]} 48.
Ke4 {[%clk 0:00:27.7]} 48... Nc4 {[%clk 0:00:31.8]} 49. Nd5 {[%clk 0:00:23.5]}
49... Nd6+ {[%clk 0:00:26.9]} 50. Kf4 {[%clk 0:00:23.4]} 50... Ke6 {[%clk
0:00:27.8]} 51. Ne3 {[%clk 0:00:23.5]} 51... Kf7 {[%clk 0:00:26.7]} 52. Nf5
{[%clk 0:00:23.3]} 52... Nc4 {[%clk 0:00:26.9]} 53. h5 {[%clk 0:00:23.6]} 53...
Ne5 {[%clk 0:00:24.5]} 54. Ke4 {[%clk 0:00:23.5]} 54... Ke6 {[%clk 0:00:18.7]}
55. Nd4+ {[%clk 0:00:22.5]} 55... Kf7 {[%clk 0:00:18.7]} 56. Nf5 {[%clk
0:00:22.4]} 56... Ke6 {[%clk 0:00:18.6]} 57. Ne3 {[%clk 0:00:22.9]} 57... Nd7
{[%clk 0:00:18.2]} 58. f4 {[%clk 0:00:22.3]} 58... Nc5+ {[%clk 0:00:18.4]} 59.
Kd4 {[%clk 0:00:22.7]} 59... Nd7 {[%clk 0:00:18.6]} 60. Nc4 {[%clk 0:00:20.4]}
60... Nf8 {[%clk 0:00:17.4]} 61. f5+ {[%clk 0:00:20.5]} 61... Ke7 {[%clk
0:00:17.8]} 62. Kd5 {[%clk 0:00:21.4]} 62... Nd7 {[%clk 0:00:17.9]} 63. Na5
{[%clk 0:00:21.5]} 63... Nb6+ {[%clk 0:00:14.2]} 64. Kc5 {[%clk 0:00:21.9]}
64... Nd7+ {[%clk 0:00:14.2]} 65. Kd5 {[%clk 0:00:22.3]} 65... Nb6+ {[%clk
0:00:14.5]} 66. Kd4 {[%clk 0:00:22.8]} 66... Nd7 {[%clk 0:00:14.4]} 67. Nc6+
{[%clk 0:00:22.5]} 67... Kd6 {[%clk 0:00:13.5]} 68. Nd8 {[%clk 0:00:23]} 68...
Ne5 {[%clk 0:00:13.3]} 69. Nb7+ {[%clk 0:00:17.1]} 69... Kc6 {[%clk 0:00:11]}
70. g5 {[%clk 0:00:15.3]} 70... Nf3+ {[%clk 0:00:07.8]} 71. Ke3 {[%clk
0:00:15.3]} 71... Nxg5 {[%clk 0:00:08.7]} 72. Na5+ {[%clk 0:00:14.6]} 72... Kd6
{[%clk 0:00:09.6]} 73. Kf4 {[%clk 0:00:14.6]} 73... Nh3+ {[%clk 0:00:09.4]} 74.
Kg4 {[%clk 0:00:14.4]} 74... Nf2+ {[%clk 0:00:09.9]} 75. Kf4 {[%clk 0:00:13.6]}
75... Nd3+ {[%clk 0:00:10.4]} 76. Kg4 {[%clk 0:00:13.2]} 76... Nf2+ {[%clk
0:00:10.1]} 77. Kf4 {[%clk 0:00:13.5]} 77... Nd3+ {[%clk 0:00:10.2]} 78. Kg4
{[%clk 0:00:14]} 78... Nf2+ {[%clk 0:00:10.6]} 1/2-1/2

[Event "*** SCC Grand Prix: Titled Tuesday Blitz"]
[Site "Chess.com"]
[Date "2020.08.11"]
[Round "1"]
[White "Fandorine"]
[Black "chegueps"]
[Result "0-1"]
[WhiteElo "2889"]
[BlackElo "2446"]
[TimeControl "180+1"]
[EndTime "10:09:45 PDT"]
[Termination "chegueps won by resignation"]

1. e4 {[%clk 0:03:00.9]} 1... c5 {[%clk 0:02:58.6]} 2. b3 {[%clk 0:03:01.1]}
2... Nc6 {[%clk 0:02:47.1]} 3. Bb2 {[%clk 0:03:00.3]} 3... e5 {[%clk 0:02:43.8]}
4. Bc4 {[%clk 0:02:59.5]} 4... d6 {[%clk 0:02:44]} 5. Ne2 {[%clk 0:02:54.4]}
5... Nf6 {[%clk 0:02:41]} 6. d3 {[%clk 0:02:52.9]} 6... a6 {[%clk 0:02:32.2]} 7.
a4 {[%clk 0:02:52.8]} 7... Rb8 {[%clk 0:02:32]} 8. Nbc3 {[%clk 0:02:52.9]} 8...
Be7 {[%clk 0:02:19.7]} 9. O-O {[%clk 0:02:52.7]} 9... O-O {[%clk 0:02:19.9]} 10.
f4 {[%clk 0:02:52.9]} 10... Nd4 {[%clk 0:02:17.3]} 11. a5 {[%clk 0:02:12.8]}
11... Be6 {[%clk 0:01:20.6]} 12. fxe5 {[%clk 0:02:01.5]} 12... dxe5 {[%clk
0:01:20.2]} 13. Ng3 {[%clk 0:02:01.8]} 13... g6 {[%clk 0:01:08.4]} 14. Kh1
{[%clk 0:01:49.7]} 14... h5 {[%clk 0:01:06.4]} 15. Nge2 {[%clk 0:01:28]} 15...
Ng4 {[%clk 0:01:01.4]} 16. Bc1 {[%clk 0:01:12.5]} 16... Bg5 {[%clk 0:00:57.6]}
17. h3 {[%clk 0:00:38.7]} 17... Ne3 {[%clk 0:00:36.7]} 18. Bxe3 {[%clk
0:00:22.2]} 18... Bxe3 {[%clk 0:00:36.6]} 19. Nd5 {[%clk 0:00:20]} 19... Bxd5
{[%clk 0:00:29.6]} 20. Bxd5 {[%clk 0:00:20.9]} 20... Qg5 {[%clk 0:00:30.2]} 21.
c3 {[%clk 0:00:14.8]} 21... Ne6 {[%clk 0:00:22.1]} 22. Rf3 {[%clk 0:00:12.7]}
22... h4 {[%clk 0:00:18.2]} 23. Qf1 {[%clk 0:00:09.7]} 23... Nf4 {[%clk
0:00:18.5]} 24. Nxf4 {[%clk 0:00:09.9]} 24... Bxf4 {[%clk 0:00:16.6]} 25. Qf2
{[%clk 0:00:10.4]} 25... Kg7 {[%clk 0:00:16.5]} 26. Rf1 {[%clk 0:00:07.7]} 26...
f6 {[%clk 0:00:17.1]} 27. Bc4 {[%clk 0:00:07.8]} 27... Rbd8 {[%clk 0:00:14.3]}
28. Qxc5 {[%clk 0:00:07.3]} 28... Rd7 {[%clk 0:00:11.8]} 29. Qf2 {[%clk
0:00:05.8]} 29... Rfd8 {[%clk 0:00:11.4]} 30. Rxf4 {[%clk 0:00:04.6]} 30... exf4
{[%clk 0:00:11.2]} 31. Qxf4 {[%clk 0:00:05.5]} 31... Qe5 {[%clk 0:00:10.5]} 32.
Qxh4 {[%clk 0:00:04.9]} 32... Qxc3 {[%clk 0:00:09.9]} 33. Qg4 {[%clk 0:00:05.4]}
33... Qe5 {[%clk 0:00:08.3]} 34. Kg1 {[%clk 0:00:05.5]} 34... Qc5+ {[%clk
0:00:07.8]} 35. Kh1 {[%clk 0:00:05.5]} 35... Qxa5 {[%clk 0:00:08.6]} 36. Qe6
{[%clk 0:00:04]} 36... Qe5 {[%clk 0:00:08.9]} 37. Qb6 {[%clk 0:00:04.5]} 37...
Qd6 {[%clk 0:00:08]} 38. Qf2 {[%clk 0:00:04.4]} 38... Qd4 {[%clk 0:00:07.9]} 39.
Qf3 {[%clk 0:00:03.8]} 39... Qe5 {[%clk 0:00:07.2]} 40. Bd5 {[%clk 0:00:03.9]}
40... b5 {[%clk 0:00:06.7]} 41. Qf2 {[%clk 0:00:04.3]} 41... Qd6 {[%clk
0:00:03]} 42. d4 {[%clk 0:00:04.5]} 42... Qe7 {[%clk 0:00:02.8]} 43. Qg3 {[%clk
0:00:04.5]} 43... Qe8 {[%clk 0:00:01.7]} 44. Qf4 {[%clk 0:00:04.5]} 44... Qe7
{[%clk 0:00:02.3]} 45. Kg1 {[%clk 0:00:04.5]} 45... Rxd5 {[%clk 0:00:02.9]} 46.
exd5 {[%clk 0:00:04.7]} 46... Rxd5 {[%clk 0:00:03.8]} 47. Kh1 {[%clk 0:00:05.2]}
47... Qd6 {[%clk 0:00:04.4]} 48. Qe3 {[%clk 0:00:04.9]} 48... Qd7 {[%clk
0:00:04.4]} 49. Qf3 {[%clk 0:00:05.6]} 49... Qd6 {[%clk 0:00:04.2]} 50. Rd1
{[%clk 0:00:05.2]} 50... Rxd4 {[%clk 0:00:04.1]} 51. Re1 {[%clk 0:00:03.4]}
51... Rd5 {[%clk 0:00:03.3]} 52. Qf2 {[%clk 0:00:02.6]} 52... Re5 {[%clk
0:00:03.2]} 53. Qa7+ {[%clk 0:00:03.1]} 53... Kh6 {[%clk 0:00:02.9]} 54. Rf1
{[%clk 0:00:04]} 54... Re7 {[%clk 0:00:01.4]} 55. Qf2 {[%clk 0:00:04.5]} 55...
Kg7 {[%clk 0:00:01.9]} 56. Qh4 {[%clk 0:00:05]} 56... Qe6 {[%clk 0:00:02.2]} 57.
Qf4 {[%clk 0:00:05]} 57... Qe5 {[%clk 0:00:02.7]} 58. Qf3 {[%clk 0:00:05.3]}
58... Rd7 {[%clk 0:00:02.7]} 59. h4 {[%clk 0:00:05.6]} 59... Rd6 {[%clk
0:00:02.9]} 60. Qb7+ {[%clk 0:00:04.1]} 60... Kh6 {[%clk 0:00:03.2]} 61. Qf3
{[%clk 0:00:04.9]} 61... Rd4 {[%clk 0:00:03.6]} 62. g3 {[%clk 0:00:04.1]} 62...
Kg7 {[%clk 0:00:03.1]} 63. Kg2 {[%clk 0:00:04]} 63... Qd6 {[%clk 0:00:02.6]} 64.
Kh1 {[%clk 0:00:04.2]} 64... Rd2 {[%clk 0:00:02.8]} 65. Qb7+ {[%clk 0:00:03.8]}
65... Kh6 {[%clk 0:00:02.9]} 66. Qf3 {[%clk 0:00:04.4]} 66... Kg7 {[%clk
0:00:02.3]} 67. h5 {[%clk 0:00:04.2]} 67... Qd5 {[%clk 0:00:02.3]} 68. Qxd5
{[%clk 0:00:03.4]} 68... Rxd5 {[%clk 0:00:03.2]} 69. hxg6 {[%clk 0:00:04.3]}
69... Kxg6 {[%clk 0:00:04.1]} 70. b4 {[%clk 0:00:05]} 70... Rd3 {[%clk
0:00:03.9]} 71. Kg2 {[%clk 0:00:04.9]} 71... Rd2+ {[%clk 0:00:03.7]} 72. Kh3
{[%clk 0:00:05]} 72... Ra2 {[%clk 0:00:04.3]} 73. Rc1 {[%clk 0:00:04.1]} 73...
Ra4 {[%clk 0:00:03.9]} 74. Rc6 {[%clk 0:00:04.4]} 74... Kg5 {[%clk 0:00:04.6]}
75. Rc5+ {[%clk 0:00:03.5]} 75... Kg6 {[%clk 0:00:04.2]} 76. Rc6 {[%clk
0:00:03.8]} 76... Rxb4 {[%clk 0:00:04.2]} 77. Rxa6 {[%clk 0:00:03.9]} 77... Rb1
{[%clk 0:00:05.1]} 78. Rb6 {[%clk 0:00:04.2]} 78... b4 {[%clk 0:00:05.2]} 79.
Kg2 {[%clk 0:00:04.7]} 79... b3 {[%clk 0:00:04.9]} 80. Kf3 {[%clk 0:00:05.1]}
80... Kf5 {[%clk 0:00:05.5]} 81. Rb5+ {[%clk 0:00:04.6]} 81... Ke6 {[%clk
0:00:05.9]} 82. Rb6+ {[%clk 0:00:05.2]} 82... Ke5 {[%clk 0:00:06.6]} 83. Rb5+
{[%clk 0:00:05.1]} 83... Kd4 {[%clk 0:00:06.8]} 84. Rb6 {[%clk 0:00:05.7]} 84...
Kc3 {[%clk 0:00:05.9]} 85. Rxf6 {[%clk 0:00:05.5]} 85... b2 {[%clk 0:00:06.5]}
86. Rc6+ {[%clk 0:00:05.6]} 86... Kd2 {[%clk 0:00:05.7]} 87. Rd6+ {[%clk
0:00:06]} 87... Kc3 {[%clk 0:00:06.2]} 88. Rc6+ {[%clk 0:00:06.3]} 88... Kb4
{[%clk 0:00:05.6]} 89. Rb6+ {[%clk 0:00:06.8]} 89... Kc5 {[%clk 0:00:06]} 90.
Rb8 {[%clk 0:00:04.1]} 90... Rf1+ {[%clk 0:00:06.2]} 91. Kg2 {[%clk 0:00:05]}
91... b1=Q {[%clk 0:00:06.5]} 92. Rc8+ {[%clk 0:00:05.9]} 92... Kd4 {[%clk
0:00:06.2]} 93. Rc1 {[%clk 0:00:06.8]} 93... Qxc1 {[%clk 0:00:06.2]} 0-1

[Event "*** SCC Grand Prix: Titled Tuesday Blitz"]
[Site "Chess.com"]
[Date "2020.08.11"]
[Round "1"]
[White "vvg2"]
[Black "tsvet2005"]
[Result "1/2-1/2"]
[WhiteElo "2220"]
[BlackElo "2567"]
[TimeControl "180+1"]
[EndTime "10:11:16 PDT"]
[Termination "Game drawn - insufficient material"]

1. d4 {[%clk 0:03:00.9]} 1... d5 {[%clk 0:02:59.8]} 2. c4 {[%clk 0:03:00.6]}
2... e6 {[%clk 0:02:59.8]} 3. Nf3 {[%clk 0:03:00.5]} 3... Nf6 {[%clk 0:02:59.6]}
4. Nc3 {[%clk 0:03:00.7]} 4... c6 {[%clk 0:02:59.7]} 5. e3 {[%clk 0:03:00.2]}
5... Nbd7 {[%clk 0:02:59.4]} 6. Bd3 {[%clk 0:03:00.2]} 6... dxc4 {[%clk
0:02:59.4]} 7. Bxc4 {[%clk 0:03:01.1]} 7... b5 {[%clk 0:03:00.3]} 8. Bd3 {[%clk
0:02:58.8]} 8... a6 {[%clk 0:03:00.9]} 9. e4 {[%clk 0:02:58]} 9... c5 {[%clk
0:03:01.1]} 10. d5 {[%clk 0:02:58.3]} 10... c4 {[%clk 0:03:01]} 11. Bc2 {[%clk
0:02:58.3]} 11... e5 {[%clk 0:03:01]} 12. O-O {[%clk 0:02:57.5]} 12... Bd6
{[%clk 0:03:01]} 13. Nh4 {[%clk 0:02:48.3]} 13... Nc5 {[%clk 0:02:53.5]} 14. f4
{[%clk 0:02:34.2]} 14... O-O {[%clk 0:02:42.4]} 15. fxe5 {[%clk 0:02:28.5]}
15... Bxe5 {[%clk 0:02:43.3]} 16. Nf5 {[%clk 0:02:28.6]} 16... Bxc3 {[%clk
0:02:23.5]} 17. bxc3 {[%clk 0:02:28.1]} 17... Ncxe4 {[%clk 0:02:23.3]} 18. Qd4
{[%clk 0:02:20.9]} 18... Re8 {[%clk 0:01:58.9]} 19. a4 {[%clk 0:01:51.3]} 19...
Qxd5 {[%clk 0:01:44.4]} 20. axb5 {[%clk 0:01:43.7]} 20... Bxf5 {[%clk
0:01:13.7]} 21. Qxd5 {[%clk 0:01:42.6]} 21... Nxd5 {[%clk 0:01:14.6]} 22. Rxf5
{[%clk 0:01:41.8]} 22... Ndxc3 {[%clk 0:01:12.5]} 23. bxa6 {[%clk 0:01:39.1]}
23... Ne2+ {[%clk 0:01:12.7]} 24. Kf1 {[%clk 0:01:37.5]} 24... Nxc1 {[%clk
0:01:12.7]} 25. Rxc1 {[%clk 0:01:37.5]} 25... Nd2+ {[%clk 0:01:02.4]} 26. Kg1
{[%clk 0:01:34.1]} 26... Rxa6 {[%clk 0:01:03.3]} 27. Rd5 {[%clk 0:01:27.8]}
27... Nb3 {[%clk 0:00:54.3]} 28. Bxb3 {[%clk 0:01:27.9]} 28... cxb3 {[%clk
0:00:55.2]} 29. Rb5 {[%clk 0:01:27.2]} 29... h6 {[%clk 0:00:49.7]} 30. Rxb3
{[%clk 0:01:26.7]} 30... Re2 {[%clk 0:00:49.9]} 31. h3 {[%clk 0:01:12.7]} 31...
Raa2 {[%clk 0:00:48.5]} 32. Rg3 {[%clk 0:01:11.9]} 32... g6 {[%clk 0:00:48.6]}
33. h4 {[%clk 0:01:10.8]} 33... h5 {[%clk 0:00:48.3]} 34. Rc4 {[%clk 0:01:10.7]}
34... Kg7 {[%clk 0:00:48.1]} 35. Kh2 {[%clk 0:01:10.5]} 35... Re1 {[%clk
0:00:42.4]} 36. Rgc3 {[%clk 0:01:05]} 36... Raa1 {[%clk 0:00:37.5]} 37. Rc7
{[%clk 0:01:01.7]} 37... Ra4 {[%clk 0:00:25.8]} 38. Kg3 {[%clk 0:00:59.5]} 38...
Rg4+ {[%clk 0:00:25.2]} 39. Kf2 {[%clk 0:00:57.2]} 39... Ree4 {[%clk 0:00:16.3]}
40. Rf3 {[%clk 0:00:57]} 40... Ref4 {[%clk 0:00:13.3]} 41. Rxf4 {[%clk 0:00:57]}
41... Rxf4+ {[%clk 0:00:14.2]} 42. Kg3 {[%clk 0:00:57.3]} 42... Ra4 {[%clk
0:00:14.2]} 43. Kh3 {[%clk 0:00:56.5]} 43... Kf6 {[%clk 0:00:13.9]} 44. g3
{[%clk 0:00:56.6]} 44... Ke6 {[%clk 0:00:13.7]} 45. Rc6+ {[%clk 0:00:56.3]}
45... Kf5 {[%clk 0:00:13.3]} 46. Rc5+ {[%clk 0:00:55.6]} 46... Kf6 {[%clk
0:00:13.4]} 47. Rc6+ {[%clk 0:00:55.8]} 47... Kg7 {[%clk 0:00:13.8]} 48. Rc7
{[%clk 0:00:56]} 48... Re4 {[%clk 0:00:14.2]} 49. Rb7 {[%clk 0:00:56.2]} 49...
Kf6 {[%clk 0:00:14.5]} 50. Kg2 {[%clk 0:00:54.8]} 50... Re7 {[%clk 0:00:13.4]}
51. Rb6+ {[%clk 0:00:54.4]} 51... Kf5 {[%clk 0:00:13.8]} 52. Kf3 {[%clk
0:00:53.7]} 52... Re5 {[%clk 0:00:10.8]} 53. Rb7 {[%clk 0:00:53.7]} 53... f6
{[%clk 0:00:11.1]} 54. Rb6 {[%clk 0:00:53.5]} 54... Rd5 {[%clk 0:00:11.5]} 55.
Ra6 {[%clk 0:00:53.8]} 55... Rd3+ {[%clk 0:00:11.5]} 56. Kg2 {[%clk 0:00:53.5]}
56... Rd4 {[%clk 0:00:11.7]} 57. Kf3 {[%clk 0:00:53]} 57... Rd3+ {[%clk
0:00:12.2]} 58. Kg2 {[%clk 0:00:53.3]} 58... Ke5 {[%clk 0:00:12.8]} 59. Ra5+
{[%clk 0:00:52.5]} 59... Ke4 {[%clk 0:00:12.9]} 60. Ra6 {[%clk 0:00:51]} 60...
Rd2+ {[%clk 0:00:12.7]} 61. Kh3 {[%clk 0:00:50.6]} 61... Ke5 {[%clk 0:00:13]}
62. Ra5+ {[%clk 0:00:49.3]} 62... Rd5 {[%clk 0:00:13.2]} 63. Ra6 {[%clk
0:00:48.3]} 63... Rd6 {[%clk 0:00:13.3]} 64. Ra5+ {[%clk 0:00:48.2]} 64... Ke6
{[%clk 0:00:13.8]} 65. Kg2 {[%clk 0:00:48.3]} 65... Rd3 {[%clk 0:00:12.1]} 66.
Ra6+ {[%clk 0:00:47.5]} 66... Rd6 {[%clk 0:00:12.4]} 67. Ra5 {[%clk 0:00:47.5]}
67... f5 {[%clk 0:00:12.9]} 68. Kf3 {[%clk 0:00:47.2]} 68... Rd3+ {[%clk
0:00:12.4]} 69. Kf4 {[%clk 0:00:45.7]} 69... Rd4+ {[%clk 0:00:11.2]} 70. Kf3
{[%clk 0:00:46]} 70... Kf6 {[%clk 0:00:11.6]} 71. Rb5 {[%clk 0:00:45.4]} 71...
Re4 {[%clk 0:00:10.6]} 72. Ra5 {[%clk 0:00:44.8]} 72... Re5 {[%clk 0:00:11.2]}
73. Ra6+ {[%clk 0:00:45.1]} 73... Re6 {[%clk 0:00:12.1]} 74. Ra5 {[%clk
0:00:45.6]} 74... Rb6 {[%clk 0:00:12.8]} 75. Rc5 {[%clk 0:00:45.4]} 75... Rb3+
{[%clk 0:00:12.5]} 76. Kf4 {[%clk 0:00:45.3]} 76... Rb4+ {[%clk 0:00:12.8]} 77.
Kf3 {[%clk 0:00:45.4]} 77... Rb6 {[%clk 0:00:13.4]} 78. Ra5 {[%clk 0:00:45.4]}
78... Ke6 {[%clk 0:00:13.8]} 79. Kf4 {[%clk 0:00:45.6]} 79... Rb4+ {[%clk
0:00:10.8]} 80. Kf3 {[%clk 0:00:45.9]} 80... Rd4 {[%clk 0:00:11.5]} 81. Ra6+
{[%clk 0:00:45.8]} 81... Rd6 {[%clk 0:00:11.6]} 82. Ra5 {[%clk 0:00:46.2]} 82...
Rc6 {[%clk 0:00:06.7]} 83. Rb5 {[%clk 0:00:46.3]} 83... Kd6 {[%clk 0:00:07]} 84.
Kf4 {[%clk 0:00:45.5]} 84... Rc4+ {[%clk 0:00:07]} 85. Kf3 {[%clk 0:00:45.4]}
85... Rc5 {[%clk 0:00:07.5]} 86. Rb6+ {[%clk 0:00:45.6]} 86... Rc6 {[%clk
0:00:07.9]} 87. Rb5 {[%clk 0:00:46.1]} 87... Ke7 {[%clk 0:00:07.9]} 88. Rb7+
{[%clk 0:00:45.7]} 88... Kf6 {[%clk 0:00:08]} 89. Rb5 {[%clk 0:00:46]} 89... Rc1
{[%clk 0:00:06.6]} 90. Ra5 {[%clk 0:00:44.6]} 90... Rf1+ {[%clk 0:00:06.5]} 91.
Ke2 {[%clk 0:00:44.5]} 91... Rb1 {[%clk 0:00:07.4]} 92. Kf3 {[%clk 0:00:44.7]}
92... Rb3+ {[%clk 0:00:07.5]} 93. Kf4 {[%clk 0:00:45.2]} 93... Rb4+ {[%clk
0:00:07.7]} 94. Kf3 {[%clk 0:00:45.7]} 94... Rb6 {[%clk 0:00:08.2]} 95. Rc5
{[%clk 0:00:45.2]} 95... g5 {[%clk 0:00:08]} 96. hxg5+ {[%clk 0:00:45.1]} 96...
Kxg5 {[%clk 0:00:08.9]} 97. Ra5 {[%clk 0:00:45.1]} 97... Rb4 {[%clk 0:00:09]}
98. Rc5 {[%clk 0:00:42]} 98... Rb3+ {[%clk 0:00:08.9]} 99. Kg2 {[%clk
0:00:41.9]} 99... Re3 {[%clk 0:00:09.5]} 100. Rc4 {[%clk 0:00:41.7]} 100... Re4
{[%clk 0:00:09]} 101. Rc8 {[%clk 0:00:40.8]} 101... Ra4 {[%clk 0:00:07.4]} 102.
Rd8 {[%clk 0:00:40.4]} 102... Ra2+ {[%clk 0:00:06.8]} 103. Kf3 {[%clk
0:00:40.1]} 103... Ra3+ {[%clk 0:00:06.9]} 104. Kg2 {[%clk 0:00:40.2]} 104... h4
{[%clk 0:00:04.3]} 105. Rg8+ {[%clk 0:00:39.8]} 105... Kh5 {[%clk 0:00:04.7]}
106. Rh8+ {[%clk 0:00:40.1]} 106... Kg4 {[%clk 0:00:05.2]} 107. Rxh4+ {[%clk
0:00:40.7]} 107... Kg5 {[%clk 0:00:05.7]} 108. Rf4 {[%clk 0:00:41.3]} 108... Re3
{[%clk 0:00:04.6]} 109. Rh4 {[%clk 0:00:41.2]} 109... Re4 {[%clk 0:00:03.8]}
110. Rf4 {[%clk 0:00:39.7]} 110... Rxf4 {[%clk 0:00:03.6]} 111. gxf4+ {[%clk
0:00:40.6]} 111... Kxf4 {[%clk 0:00:04.5]} 112. Kf2 {[%clk 0:00:40.8]} 112...
Ke4 {[%clk 0:00:03.9]} 113. Ke2 {[%clk 0:00:41]} 113... Kf4 {[%clk 0:00:04.8]}
114. Kf2 {[%clk 0:00:41.3]} 114... Kg4 {[%clk 0:00:05.5]} 115. Kg2 {[%clk
0:00:41.7]} 115... Kg5 {[%clk 0:00:06.4]} 116. Kg3 {[%clk 0:00:42]} 116... Kg6
{[%clk 0:00:06.5]} 117. Kf4 {[%clk 0:00:42]} 117... Kf6 {[%clk 0:00:07.4]} 118.
Kf3 {[%clk 0:00:42.4]} 118... Ke5 {[%clk 0:00:07.7]} 119. Ke3 {[%clk 0:00:42.9]}
119... f4+ {[%clk 0:00:08.6]} 120. Kf3 {[%clk 0:00:43.3]} 120... Kf5 {[%clk
0:00:09.2]} 121. Kf2 {[%clk 0:00:43.8]} 121... Ke4 {[%clk 0:00:10.1]} 122. Ke2
{[%clk 0:00:44.1]} 122... f3+ {[%clk 0:00:10.4]} 123. Kf2 {[%clk 0:00:42.9]}
123... Kf4 {[%clk 0:00:11.3]} 124. Kf1 {[%clk 0:00:43.3]} 124... Ke3 {[%clk
0:00:11.9]} 125. Ke1 {[%clk 0:00:43.5]} 125... Kf4 {[%clk 0:00:12.5]} 126. Kf2
{[%clk 0:00:43.7]} 126... Kg4 {[%clk 0:00:13.4]} 127. Kf1 {[%clk 0:00:43.9]}
127... Kh3 {[%clk 0:00:13.7]} 128. Kf2 {[%clk 0:00:44]} 128... Kg4 {[%clk
0:00:14.4]} 129. Kf1 {[%clk 0:00:44.4]} 129... Kg3 {[%clk 0:00:15]} 130. Kg1
{[%clk 0:00:44.5]} 130... f2+ {[%clk 0:00:10.1]} 131. Kf1 {[%clk 0:00:44.8]}
131... Kh2 {[%clk 0:00:10.1]} 132. Kxf2 {[%clk 0:00:45.7]} 1/2-1/2

[Event "*** SCC Grand Prix: Titled Tuesday Blitz"]
[Site "Chess.com"]
[Date "2020.08.11"]
[Round "2"]
[White "ulises2013"]
[Black "harkerchess"]
[Result "1-0"]
[WhiteElo "2625"]
[BlackElo "2147"]
[TimeControl "180+1"]
[EndTime "10:12:55 PDT"]
[Termination "ulises2013 won by resignation"]

1. d4 {[%clk 0:03:00.9]} 1... d5 {[%clk 0:02:57.4]} 2. c4 {[%clk 0:03:00.9]}
2... c6 {[%clk 0:02:56.8]} 3. Nf3 {[%clk 0:03:00.9]} 3... Nf6 {[%clk 0:02:56]}
4. e3 {[%clk 0:03:00.6]} 4... e6 {[%clk 0:02:55.2]} 5. b3 {[%clk 0:02:59.1]}
5... Bd6 {[%clk 0:02:54.7]} 6. Bb2 {[%clk 0:02:59]} 6... O-O {[%clk 0:02:55.3]}
7. Bd3 {[%clk 0:02:59]} 7... Nbd7 {[%clk 0:02:55.3]} 8. O-O {[%clk 0:02:59.5]}
8... Qc7 {[%clk 0:02:55.7]} 9. Nbd2 {[%clk 0:02:59.7]} 9... Re8 {[%clk
0:02:56.1]} 10. e4 {[%clk 0:02:58]} 10... dxc4 {[%clk 0:02:44.7]} 11. Nxc4
{[%clk 0:02:51.5]} 11... c5 {[%clk 0:02:33.1]} 12. e5 {[%clk 0:02:47.3]} 12...
b5 {[%clk 0:02:28.8]} 13. Nxd6 {[%clk 0:02:47]} 1-0

[Event "*** SCC Grand Prix: Titled Tuesday Blitz"]
[Site "Chess.com"]
[Date "2020.08.11"]
[Round "2"]
[White "Duong57"]
[Black "TheMightyBishops"]
[Result "0-1"]
[WhiteElo "2342"]
[BlackElo "2014"]
[TimeControl "180+1"]
[EndTime "10:14:02 PDT"]
[Termination "TheMightyBishops won by resignation"]

1. d4 {[%clk 0:03:00.9]} 1... d6 {[%clk 0:02:58.9]} 2. c4 {[%clk 0:03:01]} 2...
Nd7 {[%clk 0:02:57.5]} 3. e4 {[%clk 0:02:57.5]} 3... e5 {[%clk 0:02:55.6]} 4.
Nf3 {[%clk 0:02:54]} 4... Ngf6 {[%clk 0:02:55]} 5. Nc3 {[%clk 0:02:53]} 5... c6
{[%clk 0:02:54.8]} 6. Be2 {[%clk 0:02:48.8]} 6... Qc7 {[%clk 0:02:54.6]} 7. O-O
{[%clk 0:02:41.8]} 7... a5 {[%clk 0:02:53.1]} 8. d5 {[%clk 0:02:33.3]} 8... h6
{[%clk 0:02:49.6]} 9. h3 {[%clk 0:02:28.7]} 9... Be7 {[%clk 0:02:47.1]} 10. Be3
{[%clk 0:02:28]} 10... g5 {[%clk 0:02:43.9]} 11. Nd2 {[%clk 0:02:22.9]} 11... c5
{[%clk 0:02:34.4]} 12. a3 {[%clk 0:02:15.8]} 12... Nf8 {[%clk 0:02:30.9]} 13.
Bg4 {[%clk 0:01:50.5]} 13... Nxg4 {[%clk 0:02:29.6]} 14. Qxg4 {[%clk 0:01:51.3]}
14... Bxg4 {[%clk 0:02:28.7]} 0-1